bitfinex/quotes_ETHUSD_20251019
["timestamp","ask_amount","ask_price","bid_price","bid_amount"]
[1760912076254,4.21810709,4015.9,4015.6,0.0736]
[1760912076823,1.728,4015.9,4015.6,0.0736]
[1760912077055,4.34204817,4016.0,4015.6,0.0736]
[1760912077342,5.02534385,4016.0,4015.6,0.0736]
[1760912077712,2.49011575,4015.9,4015.6,0.0736]
[1760912077911,0.80729568,4016.0,4015.6,0.0736]
[1760912078108,0.1799,4015.7,4015.6,0.0736]
[1760912078509,1.728,4015.7,4015.6,0.0736]
[1760912080646,4.21822586,4015.7,4015.6,0.0736]
[1760912083046,4.31722586,4015.7,4015.6,0.0736]
[1760912083233,4.21822586,4015.7,4015.6,0.0736]
[1760912083432,5.00814707,4015.7,4015.6,0.0736]
[1760912083953,4.90914707,4015.7,4015.6,0.0736]
[1760912085821,5.02910105,4015.7,4015.6,0.0736]
[1760912086036,5.00814707,4015.7,4015.6,0.0736]
[1760912087470,4.90914707,4015.7,4015.6,0.0736]
[1760912096587,0.043397,4016.0,4015.6,0.0736]
[1760912096761,2.49005775,4016.0,4015.7,0.4579]
[1760912097083,4.21822586,4015.7,4015.6,0.0736]
[1760912097956,4.21922586,4015.7,4015.6,0.0736]
[1760912099086,7.53607251,4015.7,4013.0,0.2363]
[1760912099294,2.49221183,4012.5,4011.8,0.237]
[1760912099583,2.49221183,4012.5,4011.6,0.002]
[1760912099584,7.67592127,4012.5,4011.6,0.002]
[1760912099888,7.77602127,4012.5,4011.6,0.002]
[1760912100064,7.89811198,4012.5,4011.6,0.002]
[1760912100262,2.49252243,4012.0,4011.6,0.002]
[1760912100471,2.49270882,4011.7,4011.6,0.002]
[1760912100651,4.22077096,4011.6,4011.5,0.002]
[1760912100851,2.49277096,4011.6,4011.5,0.002]
[1760912102884,0.1783,4011.8,4011.5,0.002]
[1760912103087,4.22058732,4011.9,4011.5,0.002]
[1760912103286,4.22058732,4011.9,4011.5,0.4599]
[1760912103493,1.728,4012.3,4011.6,0.4579]
[1760912103697,0.1284,4012.6,4011.6,0.4579]
[1760912103880,2.49208662,4012.8,4011.6,2.95066501]
[1760912104091,2.49198232,4012.9,4011.7,0.4579]
[1760912104295,2.49208442,4012.8,4011.7,2.95054717]
[1760912104588,2.49208442,4012.8,4011.8,0.4579]
[1760912104994,2.49209092,4012.7,4011.8,0.4579]
[1760912105195,2.49215185,4012.6,4011.8,0.4579]
[1760912105984,2.49221285,4012.5,4011.8,0.4579]
[1760912106796,2.49210464,4012.7,4011.8,0.4579]
[1760912107105,0.124,4012.5,4011.8,0.5819]
[1760912107276,0.124,4012.5,4012.4,0.233]
[1760912109301,2.61621183,4012.5,4012.4,0.233]
[1760912110983,0.124,4012.5,4012.4,0.233]
[1760912111308,0.124,4012.7,4012.4,0.6662]
[1760912111609,0.1196,4013.7,4012.6,2.49209558]
[1760912111809,0.04342108,4014.0,4012.7,0.74902956]
[1760912112010,0.124,4013.8,4013.6,0.233]
[1760912112314,0.124,4013.8,4013.7,0.4728]
[1760912113003,0.124,4014.3,4013.7,0.124]
[1760912113887,2.49059311,4015.2,4013.7,0.124]
[1760912113888,0.04341395,4015.0,4014.2,0.232]
[1760912114113,0.04341395,4015.0,4012.9,3.8356]
[1760912114114,2.49142561,4013.8,4013.0,0.232]
[1760912114286,2.16205399,4013.8,4013.0,0.232]
[1760912114491,2.49173052,4013.3,4013.0,0.232]
[1760912114685,2.49173052,4013.3,4013.0,0.7048]
[1760912115898,1.728,4013.8,4013.0,0.7048]
[1760912116098,1.728,4013.1,4012.2,0.4728]
[1760912116411,2.49202784,4012.8,4012.2,0.7048]
[1760912116708,2.4919035,4013.0,4012.2,0.7048]
[1760912116910,2.49188431,4013.1,4012.3,0.4728]
[1760912117275,2.49198061,4012.9,4012.3,0.4728]
[1760912117607,0.1207,4013.4,4012.2,0.232]
[1760912117784,0.1207,4013.4,4011.6,0.002]
[1760912117785,0.1543,4012.4,4011.6,0.002]
[1760912117988,2.49245182,4012.2,4011.6,0.002]
[1760912118305,2.49225988,4012.5,4011.7,0.4728]
[1760912118488,2.49227972,4012.4,4011.7,0.4728]
[1760912119203,1.728,4012.6,4011.7,0.4728]
[1760912119204,2.49221237,4012.5,4011.7,0.4728]
[1760912120080,2.49227963,4012.4,4011.7,0.4728]
[1760912120407,2.49218007,4012.6,4011.7,0.4728]
[1760912120626,2.89807311,4013.3,4011.7,0.4728]
[1760912120627,0.001,4013.8,4012.5,0.232]
[1760912120929,1.728,4013.0,4011.7,0.29695668]
[1760912121090,2.49209318,4012.7,4011.7,0.4728]
[1760912121416,1.728,4012.4,4011.6,0.002]
[1760912121585,2.49233606,4012.3,4011.6,0.002]
[1760912121778,2.4924631,4012.1,4011.6,0.002]
[1760912122110,4.09046125,4012.2,4011.6,0.4748]
[1760912122408,2.49230219,4012.4,4011.6,0.4748]
[1760912122619,0.0995,4012.7,4011.6,0.4748]
[1760912122917,2.49220597,4012.6,4011.6,2.96751699]
[1760912123075,0.02095398,4012.5,4011.6,0.4748]
[1760912123414,1.8275,4012.4,4011.6,0.002]
[1760912123610,2.49270882,4011.7,4011.6,0.002]
[1760912123825,2.61670882,4011.7,4011.6,0.002]
[1760912124004,2.7371628,4011.7,4011.6,0.002]
[1760912124304,0.124,4011.7,4011.6,0.002]
[1760912124734,1.852,4011.7,4011.6,0.002]
[1760912124899,2.95020882,4011.7,4011.6,0.002]
[1760912125415,2.85070882,4011.7,4011.6,0.002]
[1760912125623,0.358,4011.7,4011.6,0.002]
[1760912125923,2.59198867,4012.1,4011.6,0.002]
[1760912126408,2.49263685,4011.9,4011.6,0.002]
[1760912126723,1.728,4011.8,4011.6,0.002]
[1760912126911,1.728,4011.9,4011.6,0.002]
[1760912127409,2.49265604,4011.8,4011.6,0.002]
[1760912129412,2.49253759,4012.0,4011.6,0.002]
[1760912129710,1.728,4012.2,4011.6,0.002]
[1760912129711,2.83602136,4012.1,4011.6,0.002]
[1760912129907,0.0995,4011.9,4011.6,0.002]
[1760912130085,4.22070882,4011.7,4011.6,0.002]
[1760912130687,4.32020882,4011.7,4011.6,0.002]
[1760912130878,6.17960799,4011.7,4011.6,0.002]
[1760912131982,6.08010799,4011.7,4011.6,0.002]
[1760912132317,0.0995,4012.2,4011.6,0.002]
[1760912132480,2.49270882,4011.7,4011.6,0.002]
[1760912132680,4.2416628,4011.7,4011.6,0.002]
[1760912132902,4.3411628,4011.7,4011.6,0.002]
[1760912133685,4.32020882,4011.7,4011.6,0.002]
[1760912133885,6.1775127,4011.7,4011.6,0.002]
[1760912134497,6.0780127,4011.7,4011.6,0.002]
[1760912134831,4.22070882,4011.7,4011.6,0.002]
[1760912136516,4.3411628,4011.7,4011.6,0.002]
[1760912137129,16.10137097,4011.7,4011.6,0.002]
[1760912137332,16.08041699,4011.7,4011.6,0.002]
[1760912137898,16.08041699,4011.7,4011.1,0.002]
[1760912137899,4.85437096,4011.6,4011.1,0.002]
[1760912138100,2.49301954,4011.2,4011.1,0.002]
[1760912139015,4.24197352,4011.2,4011.1,0.002]
[1760912139613,4.22101954,4011.2,4011.1,0.002]
[1760912141723,1.728,4011.2,4011.1,0.002]
[1760912141929,1.728,4011.2,4011.1,0.6736]
[1760912144435,4.22101954,4011.2,4011.1,0.002]
[1760912145743,1.728,4011.2,4011.1,0.6736]
[1760912146751,1.728,4011.2,4011.1,0.2374]
[1760912147946,1.728,4011.2,4011.1,0.002]
[1760912149350,2.16249043,4011.2,4011.1,0.002]
[1760912149525,4.34147352,4011.2,4011.1,0.002]
[1760912150342,4.32051954,4011.2,4011.1,0.002]
[1760912151267,4.22101954,4011.2,4011.1,0.002]
[1760912151460,4.32051954,4011.2,4011.1,0.002]
[1760912151658,6.19028987,4011.2,4011.1,0.002]
[1760912156165,6.95035839,4011.2,4011.1,0.002]
[1760912158050,6.85085839,4011.2,4011.1,0.002]
[1760912158250,7.33082905,4011.2,4011.1,0.002]
[1760912158472,6.95035839,4011.2,4011.1,0.002]
[1760912158680,18.43387512,4011.2,4011.1,0.002]
[1760912159783,18.3074066,4011.2,4011.1,0.002]
[1760912159956,18.2079066,4011.2,4011.1,0.002]
[1760912160461,6.09078987,4011.2,4011.1,0.002]
[1760912160660,4.22101954,4011.2,4011.1,0.6736]
[1760912160883,4.22101954,4011.2,4011.1,0.2374]
[1760912161178,4.22101954,4011.2,4011.1,0.6736]
[1760912162083,2.49301954,4011.2,4011.1,0.2374]
[1760912163279,2.49301954,4011.2,4011.1,0.6736]
[1760912163479,2.49301954,4011.2,4011.1,0.2374]
[1760912163682,2.49301954,4011.2,4011.1,0.6736]
[1760912164460,2.49294785,4011.4,4011.1,0.6736]
[1760912164659,2.49294785,4011.4,4011.2,0.4362]
[1760912165081,0.04444561,4011.7,4011.2,0.4362]
[1760912165267,0.001,4011.7,4011.2,0.4362]
[1760912166153,0.001,4011.7,4011.6,2.61677096]
[1760912166361,0.001,4011.7,4011.6,3.1277438]
[1760912166560,0.001,4011.7,4011.6,3.5616438]
[1760912166982,0.001,4011.7,4011.6,1.06887284]
[1760912167364,0.001,4011.7,4011.6,3.05067096]
[1760912167805,0.001,4011.7,4011.6,3.07559866]
[1760912168112,0.001,4011.7,4011.6,3.05067096]
[1760912168288,0.001,4011.7,4011.6,3.07559866]
[1760912169105,0.001,4011.7,4011.6,3.58519866]
[1760912169271,0.001,4011.7,4011.6,5.92100785]
[1760912169474,0.001,4011.7,4011.6,5.89608015]
[1760912170405,0.001,4011.7,4011.6,7.35808015]
[1760912170821,0.001,4011.7,4011.6,9.08608015]
[1760912171120,0.001,4012.2,4012.1,4.8540603]
[1760912171406,0.001,4014.3,4013.3,2.49171504]
[1760912171610,0.001,4014.3,4013.3,3.191]
[1760912171775,0.001,4014.3,4013.3,6.14871504]
[1760912173409,0.001,4014.3,4013.3,6.78231504]
[1760912174327,0.001,4014.3,4013.3,6.78031504]
[1760912174531,0.001,4014.3,4013.3,7.73125837]
[1760912179238,0.001,4014.3,4013.3,7.85525837]
[1760912179438,0.001,4014.3,4013.3,9.58325837]
[1760912179936,0.001,4014.3,4013.3,6.39425837]
[1760912180609,0.001,4014.3,4013.3,9.58225837]
[1760912184311,0.001,4014.3,4013.7,3.12506672]
[1760912184541,0.001,4014.3,4013.7,8.70381825]
[1760912184842,0.001,4014.3,4013.7,9.29381825]
[1760912185212,0.001,4014.3,4013.7,10.97681825]
[1760912186013,0.001,4014.3,4013.7,6.10581825]
[1760912186222,0.001,4014.3,4013.7,9.29281825]
[1760912188050,0.001,4014.3,4013.7,6.10581825]
[1760912188255,0.001,4014.3,4013.7,9.29181825]
[1760912189662,0.001,4014.3,4013.7,9.29081825]
[1760912192361,0.001,4014.3,4013.7,9.28981825]
[1760912192733,0.001,4014.3,4013.7,5.63981825]
[1760912192932,0.001,4014.3,4013.7,8.19021825]
[1760912193437,0.099,4014.2,4013.7,5.63981825]
[1760912193638,0.1529,4013.9,4013.7,7.52646672]
[1760912193838,0.1529,4013.9,4013.7,8.16006672]
[1760912195074,0.1005,4013.8,4013.7,0.124]
[1760912195435,0.1005,4013.8,4013.2,1.938]
[1760912195636,2.73125471,4013.7,4013.2,1.938]
[1760912195836,0.38751547,4013.6,4013.2,1.938]
[1760912196036,0.38751547,4013.6,4012.1,0.002]
[1760912196037,0.11995398,4013.5,4012.1,0.002]
[1760912196256,0.1208,4012.7,4012.5,2.49218821]
[1760912196443,0.1208,4012.7,4012.6,1.456]
[1760912197377,0.22,4012.7,4012.6,1.456]
[1760912197876,0.22,4012.7,4012.6,0.002]
[1760912198285,2.71208762,4012.7,4012.6,0.002]
[1760912198485,0.74249532,4012.7,4012.6,0.002]
[1760912198773,3.23458294,4012.7,4012.6,0.002]
[1760912199074,3.25553692,4012.7,4012.6,0.002]
[1760912199249,4.98353692,4012.7,4012.6,0.002]
[1760912200490,0.1208,4012.7,4012.6,0.002]
[1760912201171,0.22,4012.7,4012.6,0.002]
[1760912202053,0.1208,4012.7,4012.6,0.002]
[1760912202583,2.49242077,4013.8,4012.6,2.49414972]
[1760912202584,0.0994,4013.4,4012.6,2.49414972]
[1760912202757,2.49245923,4013.8,4012.6,2.49411953]
[1760912202960,2.49152879,4013.7,4012.8,2.4919674]
[1760912203138,3.00503248,4013.8,4012.9,5.67695688]
[1760912203342,2.24162465,4013.8,4013.1,2.49183604]
[1760912203849,0.51362465,4013.8,4012.9,3.185]
[1760912204036,0.51362465,4013.8,4012.6,0.002]
[1760912204037,0.12035398,4013.7,4012.6,0.002]
[1760912204245,0.1203,4012.7,4012.6,3.186]
[1760912204563,0.2199,4012.7,4012.6,0.002]
[1760912205176,1.729,4013.8,4012.7,2.49208762]
[1760912205343,0.124,4013.7,4013.1,0.124]
[1760912205543,4.21953834,4013.6,4013.1,0.124]
[1760912205872,0.0998,4013.5,4013.1,0.124]
[1760912206213,0.12075398,4013.4,4013.1,0.124]
[1760912206356,2.49177713,4013.2,4013.1,0.124]
[1760912206558,2.59157713,4013.2,4013.1,0.124]
[1760912207338,2.49183964,4013.1,4012.7,3.185]
[1760912207556,0.2188,4013.0,4012.8,0.124]
[1760912207794,0.223,4013.4,4012.8,0.124]
[1760912208662,2.71466792,4013.4,4012.8,0.124]
[1760912210378,2.49181702,4013.2,4012.8,0.124]
[1760912210579,0.1208,4012.9,4012.8,0.124]
[1760912213887,0.22,4012.9,4012.8,0.124]
[1760912214084,2.71196341,4012.9,4012.6,0.002]
[1760912214311,0.44911701,4012.8,4012.6,0.002]
[1760912214478,2.61608762,4012.7,4012.6,0.002]
[1760912214678,2.71528762,4012.7,4012.6,0.002]
[1760912217081,0.124,4012.7,4012.6,0.002]
[1760912217398,0.124,4013.0,4012.6,0.002]
[1760912217620,0.121,4012.9,4012.6,0.002]
[1760912217806,4.21983738,4013.2,4012.6,0.002]
[1760912218129,0.1208,4012.9,4012.6,0.126]
[1760912218321,0.22,4012.9,4012.6,0.002]
[1760912218509,0.45024938,4012.9,4012.6,0.002]
[1760912218712,2.492026,4012.8,4012.6,0.002]
[1760912219320,0.45024938,4012.9,4012.6,0.002]
[1760912219321,2.49208762,4012.7,4012.6,0.002]
[1760912219524,0.2092954,4012.9,4012.6,0.002]
[1760912220237,0.2166,4013.5,4012.6,0.002]
[1760912220434,0.1529,4013.9,4012.6,0.002]
[1760912220435,2.59068672,4013.7,4012.8,2.49197567]
[1760912220621,2.49154389,4013.6,4012.8,2.49197567]
[1760912220824,4.21954389,4013.6,4012.8,5.67997567]
[1760912221136,2.49147547,4013.7,4012.9,2.51688112]
[1760912221433,0.02095398,4013.6,4012.8,3.188]
[1760912221612,4.21965296,4013.4,4012.6,0.002]
[1760912221810,4.24063986,4013.4,4012.7,3.189]
[1760912222001,1.8274,4013.5,4012.7,3.189]
[1760912222198,2.49146672,4013.7,4012.8,2.49200901]
[1760912222434,0.68648017,4013.7,4012.8,2.49200901]
[1760912222820,1.728,4013.6,4012.7,3.189]
[1760912223120,4.21953182,4013.6,4012.8,0.002]
[1760912223327,2.49160112,4013.5,4012.9,0.4684]
[1760912223525,2.49166827,4013.4,4012.9,0.4684]
[1760912223838,0.001,4013.7,4013.0,0.4684]
[1760912224801,0.63217932,4013.7,4012.8,0.002]
[1760912225120,2.49177262,4013.3,4012.8,3.191]
[1760912225947,2.49166306,4013.4,4012.8,3.191]
[1760912226105,2.49166306,4013.4,4012.8,0.002]
[1760912226106,0.12035398,4013.4,4012.8,0.002]
[1760912226303,2.61226341,4012.9,4012.8,0.002]
[1760912226618,2.63321739,4012.9,4012.8,0.002]
[1760912226922,2.73281739,4012.9,4012.8,0.002]
[1760912227326,2.71186341,4012.9,4012.8,0.002]
[1760912227502,2.73281739,4012.9,4012.8,0.002]
[1760912227703,2.49184595,4013.1,4012.8,0.002]
[1760912227704,1.728,4013.0,4012.8,0.002]
[1760912228949,2.71186341,4012.9,4012.8,0.002]
[1760912229130,1.828,4013.5,4012.8,0.002]
[1760912229327,0.124,4013.4,4012.8,0.5915]
[1760912229530,1.728,4013.3,4012.8,0.5915]
[1760912229709,4.21972278,4013.3,4012.8,0.5915]
[1760912230110,4.21972278,4013.3,4012.8,0.126]
[1760912230346,1.728,4013.3,4012.8,0.126]
[1760912230649,1.852,4013.4,4012.8,0.126]
[1760912230942,2.53560762,4013.4,4012.8,0.126]
[1760912231507,1.728,4013.6,4012.9,0.4427]
[1760912231734,2.49252087,4013.7,4013.1,0.124]
[1760912232331,0.001,4013.7,4013.1,2.61582602]
[1760912232526,0.001,4013.7,4013.2,2.49177713]
[1760912232727,0.001,4013.7,4013.4,0.124]
[1760912236942,1.729,4013.7,4013.4,0.124]
[1760912238552,0.6897291,4013.7,4012.8,0.002]
[1760912238754,2.61203647,4013.6,4012.8,0.002]
[1760912238929,2.61559088,4013.5,4012.8,0.126]
[1760912239250,2.49166396,4013.4,4012.8,0.126]
[1760912239652,2.49165296,4013.4,4012.8,0.126]
[1760912240359,2.49172146,4013.3,4012.8,0.126]
[1760912240654,2.49165768,4013.4,4012.8,0.126]
[1760912240859,0.124,4013.5,4012.8,0.126]
[1760912241158,2.61560705,4013.5,4012.8,2.6179963]
[1760912241542,2.49166821,4013.4,4012.8,0.126]
[1760912241947,0.124,4013.5,4012.8,0.126]
[1760912242250,0.124,4013.5,4012.8,2.61801315]
[1760912242638,0.001,4013.7,4012.9,0.4427]
[1760912242836,0.001,4013.7,4013.2,0.124]
[1760912243531,1.827,4013.6,4012.8,0.002]
[1760912243726,0.02095398,4013.5,4012.8,0.002]
[1760912243927,2.61146341,4012.9,4012.8,0.002]
[1760912244244,2.71066341,4012.9,4012.8,0.002]
[1760912244647,2.73161739,4012.9,4012.8,0.002]
[1760912244833,3.25396437,4012.9,4012.8,0.002]
[1760912246058,3.13381039,4012.9,4012.8,0.002]
[1760912246228,2.61146341,4012.9,4012.8,0.002]
[1760912246427,0.1195,4012.9,4012.8,0.002]
[1760912246927,2.61146341,4012.9,4012.8,0.002]
[1760912247955,2.71066341,4012.9,4012.8,0.002]
[1760912248464,2.61146341,4012.9,4012.8,0.002]
[1760912249327,3.39379516,4012.9,4012.8,0.002]
[1760912249557,5.14274914,4012.9,4012.8,0.002]
[1760912249757,5.12179516,4012.9,4012.8,0.002]
[1760912250332,5.12179516,4012.9,4012.6,0.002]
[1760912250333,2.49208762,4012.7,4012.6,0.002]
[1760912250530,5.01952296,4012.7,4012.6,0.002]
[1760912250752,5.11872296,4012.7,4012.6,0.002]
[1760912254275,5.49919362,4012.7,4012.6,0.002]
[1760912254477,3.12587395,4012.4,4012.3,0.002]
[1760912254676,18.16163997,4012.4,4012.3,0.002]
[1760912254862,18.23988599,4012.4,4012.3,0.002]
[1760912258764,4.85424669,4011.8,4011.7,1e-08]
[1760912258953,4.85424669,4011.8,4011.1,0.002]
[1760912258954,2.49301954,4011.2,4011.1,0.002]
[1760912259142,4.91336878,4011.2,4011.1,0.002]
[1760912259347,4.9916148,4011.2,4011.1,0.002]
[1760912259648,5.01256878,4011.2,4011.1,0.002]
[1760912259849,17.79642108,4011.2,4011.1,0.002]
[1760912260049,17.7754671,4011.2,4011.1,0.002]
[1760912260283,3.12680601,4010.9,4010.6,0.002]
[1760912260457,1.728,4010.8,4010.7,1e-08]
[1760912260788,4.70153883,4010.8,4010.7,1e-08]
[1760912260987,5.23533883,4010.8,4010.7,1e-08]
[1760912261578,4.85486817,4010.8,4010.7,1e-08]
[1760912261745,0.04345063,4011.0,4010.7,0.42960001]
[1760912262151,11.76978164,4011.8,4010.7,1e-08]
[1760912262382,3.67969557,4011.7,4010.8,0.4296]
[1760912262606,2.4930222,4011.2,4010.8,0.4296]
[1760912262766,2.49309359,4011.1,4010.9,0.4296]
[1760912262963,4.2984,4010.8,4010.7,1e-08]
[1760912263682,2.5704,4010.8,4010.7,1e-08]
[1760912265068,2.5704,4010.8,4010.7,0.42960001]
[1760912270988,2.5704,4010.8,4010.7,3.22783581]
[1760912271192,2.5704,4010.8,4010.7,3.35183581]
[1760912272602,2.5704,4010.8,4010.7,3.98543581]
[1760912277509,2.5704,4010.8,4010.7,0.85850547]
[1760912277711,2.5704,4010.8,4010.7,0.12400001]
[1760912277894,2.5704,4010.8,4010.7,3.30700001]
[1760912278616,2.5704,4010.8,4010.7,2.61733035]
[1760912278819,2.5704,4010.8,4010.7,3.30700001]
[1760912279120,2.5704,4010.8,4010.7,0.12400001]
[1760912279715,5.06366817,4010.8,4010.7,0.12400001]
[1760912279882,2.5704,4010.8,4010.7,0.55360001]
[1760912280079,2.5704,4010.8,4010.7,3.04693035]
[1760912281037,2.5704,4010.8,4010.7,0.12400001]
[1760912281186,2.5704,4010.8,4010.7,3.30700001]
[1760912281401,2.5704,4010.8,4010.7,5.80033035]
[1760912282523,2.5704,4010.8,4010.7,3.30700001]
[1760912283129,2.5704,4010.8,4010.7,0.12400001]
[1760912283319,2.5704,4010.8,4010.7,1e-08]
[1760912283320,2.82754,4010.8,4010.7,1e-08]
[1760912284220,2.5704,4010.8,4010.7,1e-08]
[1760912284644,2.5704,4010.8,4010.7,2.92293035]
[1760912284798,2.5704,4010.8,4010.7,3.04693035]
[1760912284998,2.5704,4010.8,4010.7,0.12400001]
[1760912285502,2.5704,4010.8,4010.7,2.61733035]
[1760912286228,2.5704,4010.8,4010.7,3.59260855]
[1760912286927,2.5704,4010.8,4010.7,6.77560855]
[1760912290941,2.5704,4010.8,4010.7,6.31160855]
[1760912293327,2.5704,4010.8,4010.7,6.75430855]
[1760912293538,2.5704,4010.8,4010.7,10.57330855]
[1760912293845,2.5704,4010.8,4010.7,11.20690855]
[1760912294236,2.5704,4010.8,4010.7,7.38790855]
[1760912296650,2.5704,4010.8,4010.7,6.31160855]
[1760912296849,2.5704,4010.8,4010.7,6.24303035]
[1760912298063,2.5704,4010.8,4010.7,6.87663035]
[1760912304973,2.5704,4010.8,4010.7,5.67533035]
[1760912306493,2.5704,4010.8,4010.7,6.75163035]
[1760912308084,2.5704,4010.8,4010.7,2.49333035]
[1760912308253,2.5704,4010.8,4010.7,5.67533035]
[1760912310191,2.5704,4010.8,4010.7,9.49433035]
[1760912310993,2.5704,4010.8,4010.7,10.69330855]
[1760912313415,0.001,4011.0,4010.7,11.32690855]
[1760912313719,0.001,4011.5,4011.4,4.85449524]
[1760912313892,0.001,4011.5,4011.4,8.03649524]
[1760912314098,0.001,4011.5,4011.4,8.47919524]
[1760912314296,0.001,4011.5,4011.4,9.62857342]
[1760912314891,0.001,4011.5,4011.4,9.75257342]
[1760912320019,0.001,4011.5,4011.4,9.75157342]
[1760912321299,0.001,4011.5,4011.4,6.12787342]
[1760912321483,0.001,4011.5,4011.4,9.25887342]
[1760912321690,0.001,4011.5,4011.4,5.44427342]
[1760912321929,0.001,4011.5,4011.4,8.62527342]
[1760912322133,0.001,4011.5,4011.4,9.25887342]
[1760912323988,0.001,4011.5,4011.4,9.70707342]
[1760912324191,0.001,4011.5,4011.4,9.25887342]
[1760912325013,0.001,4011.5,4011.4,6.07787342]
[1760912325213,0.001,4011.5,4011.4,9.25887342]
[1760912325816,0.2241,4011.5,4011.4,2.44289524]
[1760912326019,0.001,4011.5,4011.4,5.64882419]
[1760912326217,0.001,4011.5,4011.4,6.25749524]
[1760912327321,0.001,4011.5,4011.4,7.98549524]
[1760912327717,0.001,4011.5,4011.4,9.05572275]
[1760912327918,0.001,4011.5,4011.4,9.50392275]
[1760912330642,0.001,4011.5,4011.4,13.32292275]
[1760912334156,1e-08,4012.0,4011.9,4.85418456]
[1760912334364,1e-08,4012.0,4011.9,9.15176996]
[1760912334672,0.2321,4015.2,4013.7,4.85306672]
[1760912334828,0.2321,4015.2,4013.7,9.71806672]
[1760912335030,0.2321,4015.2,4013.7,5.30126672]
[1760912335259,0.2321,4015.2,4013.7,8.03406672]
[1760912335557,0.2321,4015.2,4013.7,9.2658377]
[1760912335759,0.2321,4015.2,4013.7,9.7140377]
[1760912335958,0.2321,4015.2,4013.7,9.8380377]
[1760912338128,0.2321,4015.2,4013.7,10.32561748]
[1760912340959,0.2321,4015.2,4015.1,3.12419799]
[1760912341163,0.1859,4018.0,4015.2,0.6336]
[1760912341465,1.728,4017.6,4016.9,0.124]
[1760912341670,1.728,4017.7,4016.9,0.124]
[1760912341854,0.02095398,4017.6,4016.9,1.273]
[1760912342060,2.4891627,4017.5,4016.9,1.273]
[1760912342248,1.9139,4018.0,4016.3,0.2238]
[1760912342249,0.1859,4018.0,4016.3,0.2238]
[1760912342448,2.67475135,4018.0,4016.5,0.6336]
[1760912342650,2.67475135,4018.0,4016.4,0.412]
[1760912342651,2.70634553,4017.9,4016.7,2.48954394]
[1760912342847,0.21747514,4017.9,4016.6,3.19]
[1760912343065,0.21747514,4017.9,4017.0,2.48939072]
[1760912343244,0.21747514,4017.9,4017.2,0.6336]
[1760912343450,0.1859,4018.0,4017.3,5.67922679]
[1760912343759,0.1859,4018.0,4017.2,2.48928853]
[1760912343976,0.1859,4018.0,4017.4,3.189]
[1760912344878,0.1859,4018.0,4016.8,0.6336]
[1760912344879,0.1859,4019.0,4017.5,3.8514911]
[1760912345056,0.1859,4019.0,4017.8,2.48891792]
[1760912345258,0.26740098,4018.9,4017.9,0.02488862]
[1760912345562,0.1859,4019.0,4018.0,3.196]
[1760912345768,0.1859,4019.0,4018.1,0.02488738]
[1760912346081,0.1859,4019.0,4018.3,2.48861393]
[1760912346389,0.186,4023.7,4019.1,2.48811923]
[1760912346683,0.186,4023.7,4020.1,2.48743986]
[1760912346684,0.099,4023.4,4020.1,2.48743986]
[1760912346983,0.099,4023.3,4020.3,1.728]
[1760912347155,0.099,4023.2,4020.6,2.48719096]
[1760912347357,2.48570718,4023.0,4020.2,0.74719893]
[1760912347565,2.48593887,4022.7,4021.0,2.48691677]
[1760912347853,2.48593887,4022.7,4020.1,1.728]
[1760912347854,0.02095398,4022.6,4021.1,0.589]
[1760912348066,0.02095398,4022.6,4020.9,0.559]
[1760912348279,1.728,4023.0,4020.9,0.559]
[1760912348498,1.728,4023.0,4021.0,0.02486943]
[1760912348646,1.89177999,4022.9,4020.4,0.441]
[1760912348846,1.728,4022.8,4020.5,4.24010745]
[1760912349080,2.48633293,4022.0,4020.6,2.48717587]
[1760912349283,1.728,4022.2,4020.7,0.02487129]
[1760912349469,3.282,4022.4,4020.7,0.02487129]
[1760912349646,0.0579,4022.1,4020.4,0.441]
[1760912349852,2.48657824,4021.6,4020.4,0.441]
[1760912350380,2.54447824,4021.6,4020.4,0.441]
[1760912350579,0.0579,4021.6,4020.6,4.21517927]
[1760912350884,0.0579,4021.6,4020.7,2.51199479]
[1760912351051,2.48587189,4022.8,4020.7,0.02487129]
[1760912351248,1.993,4022.7,4020.9,1.728]
[1760912351454,0.02095398,4022.6,4020.5,1.728]
[1760912351650,2.5068,4022.8,4020.5,1.728]
[1760912351885,0.124,4022.3,4021.6,0.124]
[1760912352158,2.48658544,4021.6,4021.4,0.124]
[1760912352357,0.124,4022.0,4021.4,0.124]
[1760912352600,2.48594508,4022.7,4021.4,0.124]
[1760912352601,2.48619937,4022.3,4021.4,0.124]
[1760912352758,1.728,4023.1,4021.0,2.7143425]
[1760912352759,2.48581948,4022.9,4021.5,0.02486634]
[1760912353089,3.28,4022.7,4021.1,0.02486881]
[1760912353272,3.28,4022.7,4021.1,2.48683203]
[1760912353273,2.49435435,4022.6,4021.1,2.48683203]
[1760912353453,2.49435435,4022.6,4020.5,4.21522645]
[1760912353454,0.02935398,4022.5,4020.5,4.21522645]
[1760912353655,2.48622712,4022.2,4020.5,1.728]
[1760912353884,2.48646192,4021.8,4020.6,2.48713077]
[1760912354051,2.48646192,4021.8,4020.7,0.02487129]
[1760912354398,2.4865725,4021.6,4020.5,1.728]
[1760912354570,0.02095398,4021.5,4020.5,1.728]
[1760912354770,1.728,4022.6,4020.5,1.728]
[1760912354771,2.48676241,4021.3,4020.5,1.728]
[1760912354994,0.0084,4022.0,4020.5,1.728]
[1760912355288,0.0084,4022.0,4020.6,0.0248719]